bitfinex/quotes_SOLUSD_20250815
["timestamp","ask_amount","ask_price","bid_price","bid_amount"]
[1755289814193,3.63635035,184.53,184.5,0.03]
[1755289814390,3.63604164,184.52,184.5,0.03]
[1755289814586,0.75,184.55,184.5,0.69]
[1755289814788,3.6363302,184.54,184.5,5.23417409]
[1755289815001,3.6363302,184.53,184.5,5.23417409]
[1755289815205,5.29417409,184.55,184.5,5.23417409]
[1755289815411,3.63679364,184.54,184.5,5.23417409]
[1755289815599,5.29417409,184.55,184.5,84.43417409]
[1755289815802,3.63665941,184.54,184.51,10.63393453]
[1755289816100,0.75,184.55,184.51,10.63393453]
[1755289816309,3.63681527,184.54,184.51,10.63393453]
[1755289816520,0.75,184.55,184.51,49.09393453]
[1755289816687,3.63597051,184.54,184.51,43.87976044]
[1755289816888,0.72,184.53,184.51,43.87976044]
[1755289817117,0.72,184.52,184.51,38.46]
[1755289817422,3.63563773,184.53,184.51,43.67417409]
[1755289817586,3.63539963,184.54,184.51,43.67417409]
[1755289817786,0.78,184.55,184.52,5.41946672]
[1755289818001,3.63540642,184.54,184.52,5.41946672]
[1755289818200,3.63563099,184.53,184.52,5.41946672]
[1755289818403,0.06,184.55,184.52,5.41946672]
[1755289818404,3.63563099,184.54,184.52,5.41946672]
[1755289818717,0.06,184.55,184.52,5.41946672]
[1755289819018,3.63488419,184.54,184.52,5.41946672]
[1755289819316,0.06,184.55,184.52,5.41946672]
[1755289819497,3.63498398,184.54,184.53,5.21417409]
[1755289819812,0.06,184.55,184.54,5.41887937]
[1755289820014,0.06,184.55,184.54,48.42305346]
[1755289820216,0.06,184.55,184.54,49.09305346]
[1755289822090,0.06,184.55,184.54,44.54887937]
[1755289822302,1e-08,184.55,184.54,143.94115696]
[1755289822503,1e-08,184.55,184.54,169.39926903]
[1755289822718,1e-08,184.55,184.54,143.39926903]
[1755289823022,1e-08,184.57,184.56,41.10621557]
[1755289823221,1e-08,184.57,184.56,84.65221887]
[1755289823433,1e-08,184.57,184.56,85.32221887]
[1755289826507,1e-08,184.57,184.56,164.52221887]
[1755289826710,1e-08,184.57,184.56,163.98038966]
[1755289828551,1e-08,184.57,184.56,168.52456375]
[1755289828824,1e-08,184.57,184.56,163.98038966]
[1755289829020,3.63361195,184.65,184.59,105.14]
[1755289829194,0.72,184.66,184.59,148.12417409]
[1755289829394,0.72,184.66,184.59,148.79417409]
[1755289829607,4.35361195,184.66,184.59,148.79417409]
[1755289829815,0.72,184.66,184.59,148.79417409]
[1755289831097,0.72,184.66,184.59,163.90038966]
[1755289831298,4.35361195,184.68,184.59,137.90038966]
[1755289831715,0.72,184.67,184.59,137.90038966]
[1755289831919,3.63361195,184.68,184.59,137.90038966]
[1755289832122,0.72,184.65,184.59,140.07046966]
[1755289833310,0.72,184.68,184.59,140.07046966]
[1755289833731,0.72,184.68,184.6,15.10621557]
[1755289834021,0.72,184.68,184.6,20.86210146]
[1755289834227,0.06,184.64,184.6,20.86210146]
[1755289836326,0.06,184.64,184.63,120.18621557]
[1755289836518,0.06,184.64,184.63,137.15038966]
[1755289836720,0.06,184.64,184.63,137.82038966]
[1755289837027,0.72,184.73,184.68,15.10621557]
[1755289837344,8.16516974,184.77,184.71,4.54417409]
[1755289837521,4.54417409,184.77,184.72,38.42]
[1755289837845,0.72,184.76,184.72,42.96417409]
[1755289838138,8.88516974,184.76,184.72,38.42]
[1755289838316,4.54417409,184.76,184.72,38.42]
[1755289838517,0.72,184.75,184.72,38.42]
[1755289839815,0.72,184.75,184.72,42.96417409]
[1755289840243,3.62099565,184.78,184.73,1.21133059]
[1755289840421,0.72,184.78,184.77,4.54417409]
[1755289840616,0.72,184.78,184.77,42.96417409]
[1755289840810,0.1,184.79,184.77,42.96417409]
[1755289841076,0.1,184.79,184.78,4.54417409]
[1755289841343,0.1,184.79,184.78,20.32038966]
[1755289842534,0.1,184.79,184.77,64.42]
[1755289842856,0.1,184.79,184.78,4.54417409]
[1755289843743,0.82,184.79,184.74,79.08]
[1755289843912,0.1,184.79,184.78,4.54417409]
[1755289844111,0.1,184.79,184.78,42.94417409]
[1755289845227,0.1,184.79,184.78,58.72038966]
[1755289845420,0.1,184.79,184.78,137.80038966]
[1755289849175,0.66,184.85,184.81,26.0]
[1755289849328,26.0,184.9,184.84,4.54417409]
[1755289849532,0.66,184.86,184.85,38.4]
[1755289850731,0.66,184.86,184.85,42.94417409]
[1755289850940,0.66,184.86,184.85,38.4]
[1755289852044,0.66,184.86,184.85,42.94417409]
[1755289852654,0.66,184.88,184.85,42.94417409]
[1755289852850,0.66,184.9,184.87,4.54417409]
[1755289853063,30.54417409,184.94,184.89,4.54417409]
[1755289853247,13.44135511,184.97,184.85,79.76]
[1755289853248,7.55015328,184.93,184.91,4.54417409]
[1755289853590,3.57629869,184.95,184.92,38.38]
[1755289853753,3.57629869,184.96,184.92,42.92417409]
[1755289854064,7.54818828,184.95,184.93,4.54417409]
[1755289854251,0.66,184.94,184.92,42.92417409]
[1755289854455,3.57629869,184.96,184.92,42.92417409]
[1755289854773,0.66,184.93,184.92,45.48028011]
[1755289854962,3.57629869,184.97,184.92,45.48028011]
[1755289855156,4.54945949,185.0,184.94,7.10028011]
[1755289855157,0.66,184.95,184.94,7.10028011]
[1755289855457,3.57629869,184.98,184.94,45.50028011]
[1755289855772,8.20385047,184.97,184.94,45.50028011]
[1755289855972,0.66,184.96,184.94,45.50028011]
[1755289856139,0.66,184.96,184.95,7.10028011]
[1755289857677,3.56935337,184.98,184.95,86.18028011]
[1755289857880,0.66,184.99,184.97,7.10028011]
[1755289858048,0.66,184.99,184.98,45.48028011]
[1755289858462,3.56862963,185.01,184.98,45.48028011]
[1755289858463,3.56862963,185.0,184.98,45.48028011]
[1755289858640,0.1,185.05,184.99,7.10028011]
[1755289858844,8.18910844,185.04,185.0,45.48028011]
[1755289859161,8.18910844,185.03,185.0,45.48028011]
[1755289859351,8.18910844,185.02,185.0,45.48028011]
[1755289859558,0.66,185.02,185.0,45.48028011]
[1755289860193,0.66,185.01,184.96,26.68]
[1755289860484,7.10028011,184.99,184.97,38.42]
[1755289860668,8.18664771,184.98,184.97,38.42]
[1755289861054,15.28692782,184.98,184.97,38.42]
[1755289861253,7.52664771,184.98,184.97,38.42]
[1755289861453,4.22568067,185.01,184.97,45.52028011]
[1755289861656,7.52701968,185.0,184.98,7.10028011]
[1755289861888,0.66,185.0,184.99,38.42]
[1755289862062,8.18747743,185.0,184.98,38.42]
[1755289862261,7.52737278,184.99,184.98,38.42]
[1755289862765,0.66,185.01,184.98,38.42]
[1755289863081,0.66,185.01,184.98,45.52028011]
[1755289863858,0.66,185.01,184.98,38.42]
[1755289864057,3.56718491,185.0,184.98,45.52028011]
[1755289864268,0.66,185.01,184.98,45.52028011]
[1755289864565,0.66,185.01,184.98,38.42]
[1755289864763,0.66,185.01,184.98,45.52028011]
[1755289864985,0.66,185.01,184.99,5.4056976]
[1755289865666,0.66,185.0,184.99,5.4056976]
[1755289865962,0.66,185.0,184.98,38.42]
[1755289866278,5.40423692,185.04,184.98,38.42]
[1755289866477,15.28992586,185.03,184.98,43.82588978]
[1755289866693,8.18964575,185.02,184.98,43.82588978]
[1755289866893,7.52964575,185.01,184.98,43.82588978]
[1755289867190,7.52948084,185.0,184.98,43.82588978]
[1755289867495,0.66,185.01,184.98,43.82588978]
[1755289867663,7.53172504,185.0,184.98,43.82588978]
[1755289867864,0.66,185.01,184.98,43.82588978]
[1755289868094,15.29200515,185.0,184.99,38.38]
[1755289868310,8.19172504,185.0,184.93,5.40745146]
[1755289868620,7.53172504,184.99,184.97,7.10028011]
[1755289868769,5.20945949,185.03,184.98,12.50622381]
[1755289868770,7.76028011,185.03,184.98,12.50622381]
[1755289869105,8.19283855,185.02,184.99,38.38]
[1755289869392,7.53283855,185.01,184.99,38.38]
[1755289869593,7.53283855,185.0,184.99,38.38]
[1755289870098,7.53283855,185.0,184.99,43.7856976]
[1755289870463,3.9646604,185.0,184.99,43.7856976]
[1755289870682,3.96633258,185.0,184.99,43.7856976]
[1755289871364,7.53600663,185.0,184.99,43.7856976]
[1755289871567,7.53600663,185.0,184.99,38.38]
[1755289872164,7.53600663,185.0,184.99,43.7856976]
[1755289873002,7.53600663,185.0,184.99,38.38]
[1755289873404,7.53600663,185.0,184.99,43.7856976]
[1755289873774,0.76,185.05,184.99,51.56597771]
[1755289873972,7.5447617,185.04,185.01,7.10028011]
[1755289874195,7.5447617,185.03,185.02,43.7648211]
[1755289874490,7.5447617,185.03,185.02,50.86510121]
[1755289874665,7.5447617,185.03,185.02,48.26599119]
[1755289874864,8.2047617,185.03,185.02,38.36]
[1755289875085,7.5447617,185.03,185.02,38.36]
[1755289875471,7.5447617,185.03,185.02,43.7648211]
[1755289875791,7.5447617,185.03,185.02,38.36]
[1755289878085,12.70593179,185.03,184.97,26.7]
[1755289878288,12.70593179,185.02,184.98,43.74598983]
[1755289878500,8.2047617,185.01,184.98,43.74598983]
[1755289878703,7.5447617,185.0,184.98,43.74598983]
[1755289879003,7.5447617,184.99,184.98,43.74598983]
[1755289879907,7.5447617,184.99,184.98,48.94715992]
[1755289880704,7.5447617,184.99,184.98,48.24715992]
[1755289881606,7.5447617,184.99,184.98,48.94715992]
[1755289882806,3.97120455,184.99,184.98,48.94715992]
[1755289885604,7.57762745,184.99,184.98,48.94715992]
[1755289887994,3.97120455,184.99,184.98,48.94715992]
[1755289892395,0.06,185.04,185.02,5.4048211]
[1755289892627,0.06,185.04,185.03,42.84117009]
[1755289892927,3.67840832,185.04,185.03,42.84117009]
[1755289893721,0.06,185.04,185.03,42.84117009]
[1755289894299,8.84385544,185.04,184.98,79.08]
[1755289894622,4.28268535,185.03,184.99,38.34]
[1755289894823,4.28268535,185.02,184.99,38.34]
[1755289895124,4.28268535,185.01,184.99,38.34]
[1755289895301,0.66,185.03,185.0,4.50117009]
[1755289895503,0.06,185.04,185.02,4.50117009]
[1755289895700,0.06,185.04,185.03,42.84117009]
[1755289895929,3.68480002,185.04,185.03,42.84117009]
[1755289896105,0.06,185.04,185.03,38.34]
[1755289896295,0.06,185.04,185.03,42.84117009]
[1755289896496,0.06,185.04,185.03,48.24569908]
[1755289896699,0.06,185.04,185.03,48.94569908]
[1755289896916,0.06,185.04,185.03,43.74452899]
[1755289897118,0.06,185.04,185.03,44.44452899]
[1755289897452,4.54945949,185.11,185.03,57.95585147]
[1755289897628,3.62907214,185.1,185.09,4.50117009]
[1755289897803,8.79024223,185.1,185.09,38.36]
[1755289898131,4.28907214,185.1,185.09,38.36]
[1755289899209,4.28907214,185.1,185.09,43.76277702]
[1755289899729,4.28907214,185.1,185.03,26.0]
[1755289899730,8.79024223,185.1,185.08,38.36]
[1755289899928,8.79024223,185.09,185.07,38.36]
[1755289900103,4.28907214,185.08,185.04,4.50117009]
[1755289900300,0.66,185.1,185.06,4.50117009]
[1755289900500,15.10621557,185.14,185.08,5.40306894]
[1755289900729,8.79233119,185.13,185.09,38.4]
[1755289901029,30.54945949,185.16,185.09,38.4]
[1755289901030,4.50117009,185.11,185.09,38.4]
[1755289901230,4.2911611,185.1,185.09,38.4]
[1755289902123,4.2911611,185.1,185.07,5.40327654]
[1755289902425,3.6311611,185.09,185.08,38.42]
[1755289902826,8.79233119,185.09,184.99,0.7]
[1755289903024,4.54945949,185.12,184.99,0.7]
[1755289903025,4.50117009,185.05,185.0,4.50117009]
[1755289903337,0.66,185.04,185.0,42.98117009]
[1755289903733,0.66,185.09,185.03,4.50117009]
[1755289903926,0.66,185.11,185.07,4.50117009]
[1755289904127,4.29176797,185.1,185.08,38.68]
[1755289904355,4.29122232,185.09,185.08,38.68]
[1755289904646,4.29122232,185.09,185.08,44.08306894]
[1755289904863,3.63122232,185.09,185.08,44.78306894]
[1755289905068,5.16117009,185.12,185.08,44.08306894]
[1755289905350,4.32122232,185.11,185.08,44.08306894]
[1755289905554,4.32122232,185.1,185.08,44.08306894]
[1755289905752,0.69,185.1,185.08,48.58423903]
[1755289905954,0.69,185.12,185.08,44.08306894]
[1755289906125,4.50117009,185.13,185.08,44.08306894]
[1755289906126,3.6303144,185.11,185.08,44.08306894]
[1755289906328,0.69,185.11,185.08,44.08306894]
[1755289906721,5.19117009,185.13,185.09,38.68]
[1755289906929,3.62999738,185.12,185.09,38.68]
[1755289907124,3.62971077,185.12,185.09,38.68]
[1755289907525,3.62971077,185.12,185.09,43.18117009]
[1755289907719,3.62911682,185.12,185.1,38.66]
[1755289907952,30.50117009,185.14,185.1,38.66]
[1755289908132,3.62899129,185.13,185.1,38.66]
[1755289908324,26.69,185.14,185.11,5.40219329]
[1755289908644,0.69,185.14,185.11,5.40219329]
[1755289908857,4.31806052,185.14,185.12,38.66]
[1755289909158,5.19117009,185.13,185.12,38.66]
[1755289909526,0.69,185.13,185.11,5.40219329]
[1755289909733,4.50117009,185.13,185.12,38.64]
[1755289909933,3.62806052,185.14,185.12,38.64]
[1755289910152,4.50117009,185.15,185.12,38.64]
[1755289910354,0.69,185.14,185.13,5.40160967]
[1755289910572,4.50117009,185.15,185.13,5.40160967]
[1755289910865,5.19117009,185.15,185.12,44.04185591]
[1755289911331,0.69,185.15,185.12,44.04185591]
[1755289911531,0.69,185.14,185.12,38.64]
[1755289911846,5.19117009,185.14,185.12,38.64]
[1755289912742,5.19117009,185.13,185.11,38.66]
[1755289913059,9.02912662,185.15,185.11,38.66]
[1755289913060,5.19117009,185.12,185.11,38.66]
[1755289913959,5.19117009,185.12,185.04,5.21117009]
[1755289914162,4.50117009,185.1,185.05,38.64]
[1755289914340,4.50117009,185.1,185.05,48.54503914]
[1755289914542,5.19117009,185.1,185.05,49.22503914]
[1755289915969,0.69,185.09,185.05,44.72386905]
[1755289916669,4.50117009,185.09,185.06,38.62]
[1755289916837,4.31738007,185.11,185.06,38.62]
[1755289917038,29.62738007,185.14,185.07,0.68]
[1755289917243,4.50117009,185.11,185.07,0.68]
[1755289917750,3.62738007,185.12,185.07,0.68]
[1755289918059,4.50117009,185.11,185.08,5.40306894]
[1755289918253,5.19117009,185.1,185.06,38.62]
[1755289918464,5.19117009,185.1,185.06,44.02362666]
[1755289918770,5.19117009,185.1,185.06,44.70362666]
[1755289918968,4.50117009,185.1,185.07,0.68]
[1755289919148,4.50117009,185.11,185.07,0.68]
[1755289919355,4.50117009,185.1,185.07,0.68]
[1755289919855,0.69,185.11,185.07,0.68]
[1755289920373,4.50117009,185.08,185.04,0.03]
[1755289920543,4.50117009,185.05,185.04,0.03]
[1755289921170,5.19117009,185.05,185.04,0.03]
[1755289921371,0.69,185.05,185.04,0.03]
[1755289921550,3.62910359,185.07,185.04,4.53117009]
[1755289921754,0.69,185.08,185.04,0.03]
[1755289922054,4.3185798,185.08,185.04,0.03]
[1755289922251,3.6285798,185.08,185.04,5.43421494]
[1755289922468,8.81974989,185.07,185.04,0.03]
[1755289922653,3.6285798,185.06,185.04,0.03]
[1755289922856,8.81974989,185.06,185.04,0.03]
[1755289923048,0.69,185.05,185.04,0.03]
[1755289923249,5.19117009,185.05,185.04,0.03]
[1755289923445,8.82102106,185.05,185.04,0.03]
[1755289923776,8.82102106,185.07,185.04,0.03]
[1755289923977,5.40280485,185.09,185.04,5.21117009]
[1755289923978,4.50117009,185.09,185.04,5.21117009]
[1755289924166,3.62956677,185.08,185.06,4.50117009]
[1755289924355,4.31932396,185.11,185.07,5.40336089]
[1755289924547,3.62932396,185.1,185.07,5.40336089]
[1755289924749,0.69,185.11,185.07,84.60336089]
[1755289924966,4.31978611,185.1,185.07,84.60336089]
[1755289925184,0.69,185.1,185.07,84.60336089]
[1755289925481,4.50117009,185.13,185.08,0.68]
[1755289925681,3.63007312,185.12,185.08,0.68]
[1755289925977,3.63007312,185.11,185.08,5.18117009]
[1755289926153,5.40080941,185.16,185.09,5.18117009]
[1755289926154,3.62992136,185.12,185.09,5.18117009]
[1755289926353,5.19117009,185.14,185.1,5.40248514]
[1755289926557,3.6304995,185.13,185.1,9.90365523]
[1755289926760,8.13166959,185.16,185.11,0.68]
[1755289926961,3.6304995,185.15,185.12,5.18117009]
[1755289927177,3.63000307,185.14,185.12,4.50117009]
[1755289927383,0.06,185.15,185.1,18.90869799]
[1755289927678,3.62979094,185.14,185.12,4.50117009]
[1755289927854,0.06,185.15,185.11,5.18117009]
[1755289928054,3.62978996,185.14,185.11,5.18117009]
[1755289928265,0.06,185.15,185.11,5.18117009]
[1755289928583,3.62963833,185.14,185.12,5.40190146]
[1755289928879,0.75,185.15,185.12,5.40190146]
[1755289929177,3.62973122,185.14,185.12,5.40190146]
[1755289929382,0.75,185.15,185.12,5.40190146]
[1755289929555,3.6295178,185.14,185.12,5.40190146]
[1755289929762,0.06,185.15,185.12,5.40190146]
[1755289929979,0.06,185.15,185.12,9.90307155]
[1755289930185,0.06,185.15,185.12,10.58307155]
[1755289930972,0.06,185.15,185.13,5.18117009]
[1755289931174,0.06,185.15,185.12,5.40190146]
[1755289931373,0.06,185.15,185.12,10.58307155]
[1755289932858,0.06,185.15,185.12,6.08190146]
[1755289933072,0.06,185.15,185.12,10.58307155]
[1755289933264,0.06,185.15,185.13,0.68]
[1755289933455,0.06,185.15,185.13,5.18117009]
[1755289934062,0.06,185.15,185.12,5.40190146]
[1755289934262,3.62948918,185.14,185.12,5.40190146]
[1755289934483,5.25117009,185.15,185.12,5.40190146]
[1755289934687,3.62981855,185.14,185.11,5.40219329]
[1755289935013,5.25117009,185.15,185.11,5.40219329]
[1755289935408,0.06,185.15,185.12,5.16117009]
[1755289935564,0.06,185.15,185.14,4.50117009]
[1755289935764,0.06,185.15,185.13,0.66]
[1755289935964,0.06,185.15,185.14,5.16117009]
[1755289936195,0.06,185.15,185.12,64.7]
[1755289936489,0.06,185.15,185.13,0.66]
[1755289936687,0.06,185.15,185.14,5.40131792]
[1755289937482,8.90123442,185.15,185.11,117.9]
[1755289937697,3.63006433,185.14,185.11,117.9]
[1755289937992,5.27117009,185.15,185.11,117.9]
[1755289938195,0.06,185.15,185.11,128.46334692]
[1755289940408,0.77,185.15,185.11,128.46334692]
[1755289940983,0.06,185.15,185.11,128.46334692]
[1755289941388,0.77,185.15,185.11,128.46334692]
[1755289941706,0.77,185.15,185.11,123.96217683]
[1755289941906,0.71,185.14,185.11,38.7]
[1755289942209,4.50117009,185.12,185.09,38.7]
[1755289942417,4.34183453,185.11,185.07,44.76331879]
[1755289942589,0.71,185.11,185.07,44.76331879]
[1755289942796,5.21117009,185.11,185.07,44.76331879]
[1755289943180,4.50117009,185.06,185.05,38.68]
[1755289943377,4.50117009,185.06,185.05,79.2]
[1755289943583,4.50117009,185.06,185.04,0.03]
[1755289943584,4.34297494,185.06,185.04,0.03]
[1755289943794,8.84414503,185.05,185.04,0.03]
[1755289944005,3.63297494,185.05,185.04,0.03]
[1755289944205,3.63297494,185.05,185.04,0.69]
[1755289944407,4.53712454,185.12,185.04,84.39117009]
[1755289944587,3.63191035,185.11,185.06,4.50117009]
[1755289944915,3.63191035,185.1,185.07,0.66]
[1755289945083,4.50117009,185.11,185.07,0.66]
[1755289945288,3.63188317,185.1,185.06,38.72]
[1755289945485,3.63188317,185.09,185.06,38.72]
[1755289945691,0.71,185.1,185.06,43.88117009]
[1755289945889,3.13717409,185.11,185.07,0.66]
[1755289946113,3.13717409,185.11,185.07,6.06316361]
[1755289946614,4.50117009,185.08,185.05,79.2]
[1755289946786,4.50117009,185.07,185.05,79.2]
[1755289946980,5.40191861,185.12,185.05,79.2]
[1755289947308,4.50117009,185.09,185.05,79.2]
[1755289947483,4.50117009,185.09,185.05,79.86]
[1755289947685,4.50117009,185.1,185.05,84.6039015]
[1755289947891,4.50117009,185.11,185.06,5.16117009]
[1755289948185,4.50117009,185.11,185.07,6.06336089]
[1755289949193,4.50117009,185.1,185.05,79.2]
[1755289949511,4.50117009,185.06,185.05,79.2]
[1755289949807,9.24802994,185.06,185.05,79.2]
[1755289950610,9.24668489,185.06,185.04,79.23]
[1755289950800,4.50117009,185.05,185.04,79.23]
[1755289951183,4.50117009,185.07,185.04,79.89]
[1755289951408,6.11219761,185.11,185.05,0.66]
[1755289951719,4.03416261,185.1,185.06,4.50117009]
[1755289952007,4.50117009,185.11,185.07,0.66]
[1755289952427,4.50117009,185.1,185.07,0.66]
[1755289952930,4.50117009,185.1,185.07,6.06332335]
[1755289953282,4.50117009,185.11,185.07,6.06332335]
[1755289954101,6.11183114,185.13,185.07,6.06332335]
[1755289954322,4.50117009,185.1,185.07,6.06332335]
[1755289955507,4.50117009,185.1,185.07,0.66]
[1755289956432,4.50117009,185.1,185.07,6.06333464]
[1755289956618,6.17123067,185.15,185.08,0.66]
[1755289956817,4.50117009,185.13,185.08,79.86]
[1755289957036,4.50117009,185.13,185.09,0.66]
[1755289957647,4.50117009,185.13,185.1,0.66]
[1755289957935,3.6295562,185.12,185.1,0.66]
[1755289958234,0.77,185.15,185.1,0.66]
[1755289958416,12.16324605,185.14,185.1,0.66]
[1755289958736,3.62954982,185.13,185.11,5.40219329]
[1755289958937,3.62954982,185.12,185.11,5.40219329]
[1755289959615,3.62954982,185.12,185.11,6.06219329]
[1755289959817,3.62954982,185.14,185.11,6.06219329]
[1755289960033,3.62954982,185.13,185.11,5.40219329]
[1755289960217,3.62954982,185.12,185.1,123.32240111]
[1755289960417,4.56117009,185.15,185.11,0.66]
[1755289960634,3.62940467,185.14,185.11,0.66]
[1755289960936,3.62940467,185.13,185.12,0.66]
[1755289961348,3.62940467,185.13,185.1,123.32240111]
[1755289961550,5.27117009,185.15,185.1,123.32240111]
[1755289961731,3.62923864,185.14,185.1,123.98240111]
[1755289961939,3.62923864,185.13,185.1,123.98240111]
[1755289962131,5.27117009,185.15,185.1,123.98240111]
[1755289962439,3.62919118,185.14,185.1,123.98240111]
[1755289962637,3.62919118,185.13,185.1,49.2835712]
[1755289962827,5.27117009,185.15,185.1,49.2835712]
[1755289963140,3.62907497,185.14,185.1,44.78240111]
[1755289963314,3.62907497,185.13,185.1,44.12240111]
[1755289963516,3.62892044,185.14,185.12,4.50117009]
[1755289963820,0.06,185.15,185.13,0.66]
[1755289964018,3.62891554,185.14,185.13,6.06160967]
[1755289964215,3.62891554,185.14,185.13,10.56277976]
[1755289964521,0.06,185.15,185.13,89.76277976]
[1755289964835,0.06,185.15,185.14,5.16117009]
[1755289965019,0.06,185.15,185.14,0.66]
[1755289965215,0.06,185.15,185.14,5.16117009]
[1755289966042,0.06,185.15,185.14,10.56248801]
[1755289966241,0.06,185.15,185.14,6.06131792]
[1755289967624,0.06,185.15,185.14,5.40131792]
[1755289968230,0.06,185.15,185.14,6.06131792]
[1755289968418,0.06,185.15,185.14,85.26131792]
[1755289968940,0.06,185.15,185.14,89.76248801]
[1755289970414,0.06,185.15,185.14,85.26131792]
[1755289970638,0.06,185.15,185.14,89.76248801]
[1755289971932,0.06,185.15,185.14,89.10248801]
[1755289972134,0.06,185.15,185.14,89.76248801]
[1755289972723,0.78,185.15,185.14,79.2]
[1755289972923,0.78,185.15,185.14,84.60131792]
[1755289973221,4.50117009,185.18,185.14,84.60131792]
[1755289973421,3.62777683,185.17,185.14,84.60131792]
[1755289973726,3.62777683,185.16,185.14,84.60131792]
[1755289973941,4.50117009,185.18,185.14,84.60131792]
[1755289974249,3.62759597,185.17,185.14,84.60131792]
[1755289974552,3.62759597,185.16,185.14,84.60131792]
[1755289974720,3.62759597,185.17,185.14,84.60131792]
[1755289974920,3.62759597,185.16,185.14,84.60131792]
[1755289975137,3.62759597,185.17,185.14,84.60131792]
[1755289975336,3.62759597,185.16,185.14,84.60131792]
[1755289975539,3.62759597,185.17,185.14,84.60131792]
[1755289975735,3.62759597,185.16,185.14,79.2]
[1755289975942,3.62749482,185.15,185.14,79.2]
[1755289976226,8.12866491,185.15,185.14,79.2]
[1755289976444,12.38007891,185.15,185.14,79.2]
[1755289976636,8.34866491,185.15,185.14,79.2]
[1755289976948,3.62749482,185.15,185.14,79.2]
[1755289977339,3.62749482,185.15,185.12,6.06184518]
[1755289977537,3.62749482,185.14,185.13,0.66]
[1755289977740,3.62749482,185.16,185.13,0.66]
[1755289977944,3.62749482,185.15,185.13,0.66]
[1755289978129,3.62749482,185.14,185.13,0.66]
[1755289978530,0.06,185.15,185.13,49.16277976]
[1755289978728,3.68768205,185.15,185.14,0.66]
[1755289979165,3.68768205,185.15,185.13,48.50277976]
[1755289979369,0.06,185.15,185.13,38.6]
[1755289979541,0.28,185.15,185.13,38.6]
[1755289979738,3.62788094,185.14,185.12,38.6]
[1755289979937,0.28,185.15,185.12,38.6]
[1755289980257,0.28,185.15,185.11,0.03]
[1755289980258,4.50117009,185.13,185.11,0.03]
[1755289980459,13.75096926,185.12,185.11,0.03]
[1755289981036,3.62789771,185.12,185.11,0.69]
[1755289981237,2.90789771,185.12,185.11,69.79117009]
[1755289981439,0.06,185.15,185.11,74.29234018]
[1755289981769,0.06,185.15,185.14,30.50117009]
[1755289981956,0.06,185.15,185.14,69.74117009]
[1755289982274,0.06,185.15,185.14,70.40117009]
[1755289982467,0.06,185.15,185.14,75.80248801]
[1755289982765,4.53712454,185.27,185.14,89.30578281]
[1755289982931,4.02836786,185.26,185.15,0.66]
[1755289983134,9.24953795,185.26,185.2,4.50117009]
[1755289983356,4.74836786,185.25,185.19,43.72117009]
[1755289983551,4.02836786,185.24,185.21,4.50117009]
[1755289983859,0.72,185.25,185.21,4.50117009]
[1755289984265,0.72,185.25,185.21,9.90042424]
[1755289984651,0.72,185.24,185.18,0.66]
[1755289984961,0.72,185.24,185.2,4.50117009]
[1755289985335,4.50117009,185.26,185.2,4.50117009]
[1755289985531,4.02414542,185.25,185.2,0.66]
[1755289985735,4.02414542,185.24,185.17,39.2]
[1755289985965,4.50117009,185.22,185.17,39.86]
[1755289986160,0.72,185.23,185.19,4.50117009]
[1755289986371,5.39782938,185.26,185.18,5.39996467]
[1755289986372,5.22117009,185.25,185.18,5.39996467]
[1755289986533,4.02375574,185.24,185.21,4.50117009]
[1755289987261,5.22117009,185.25,185.2,4.50117009]
[1755289987462,5.22117009,185.24,185.17,39.2]
[1755289987673,4.50117009,185.21,185.17,39.2]
[1755289987847,5.22117009,185.2,185.17,39.2]
[1755289988040,4.50117009,185.18,185.13,9.90275561]
[1755289988258,9.90133681,185.18,185.12,44.36117009]
[1755289988480,4.50117009,185.17,185.12,44.36117009]
[1755289988778,5.22117009,185.17,185.12,123.56117009]
[1755289988984,4.50117009,185.16,185.12,39.2]